bitfinex/quotes_SOLUSD_20241118
["timestamp","ask_amount","ask_price","bid_price","bid_amount"]
[1731958658409,20.81550284,236.53,236.47,4.2287]
[1731958658706,20.81550284,236.53,236.46,10.5726]
[1731958658707,0.09367462,236.51,236.46,10.5726]
[1731958658910,0.12549,236.5,236.46,10.5726]
[1731958659728,0.12549,236.5,236.46,14.8016]
[1731958660229,0.12549,236.5,236.46,10.5726]
[1731958660412,0.21916462,236.52,236.46,10.5726]
[1731958660613,0.21916462,236.5,236.46,10.5726]
[1731958661214,0.21916462,236.51,236.46,10.5726]
[1731958661414,0.21916462,236.51,236.46,14.8016]
[1731958663229,0.21916462,236.51,236.41,12.3087]
[1731958663230,0.09367462,236.49,236.41,12.3087]
[1731958663420,20.72182822,236.47,236.41,31.29662822]
[1731958663620,20.72182822,236.47,236.41,10.5748]
[1731958663829,0.21916462,236.48,236.41,31.29662822]
[1731958664215,20.72182822,236.49,236.41,31.29662822]
[1731958664527,0.12549,236.5,236.43,20.72182822]
[1731958665311,0.21916462,236.5,236.44,34.8029]
[1731958665547,0.12549,236.52,236.46,20.0]
[1731958665843,0.09367462,236.51,236.46,20.0]
[1731958666534,0.09367462,236.51,236.45,20.72182822]
[1731958666713,0.09367462,236.51,236.46,20.72182822]
[1731958667012,0.09367462,236.51,236.45,20.0]
[1731958667716,0.21916462,236.51,236.44,10.5735]
[1731958667934,20.72182822,236.48,236.44,10.5735]
[1731958668137,0.34465462,236.45,236.39,10.5754]
[1731958668315,0.21916462,236.43,236.39,14.8056]
[1731958668827,0.21916462,236.43,236.39,10.5754]
[1731958669213,20.72182822,236.46,236.39,10.5754]
[1731958669416,0.12549,236.49,236.42,20.72182822]
[1731958670118,12.5174,236.56,236.44,20.72182822]
[1731958670119,20.72182822,236.52,236.44,20.72182822]
[1731958671118,20.72182822,236.52,236.45,4.2292]
[1731958671512,0.09367462,236.51,236.45,4.2292]
[1731958671741,0.34465462,236.51,236.45,14.8022]
[1731958673351,0.34465462,236.49,236.45,10.573]
[1731958674041,0.21916462,236.47,236.45,10.573]
[1731958674548,0.21916462,236.47,236.45,14.8022]
[1731958675343,0.12549,236.47,236.42,20.72182822]
[1731958675572,0.25098,236.51,236.42,20.72182822]
[1731958675745,0.09367462,236.5,236.42,20.72182822]
[1731958676933,0.12549,236.49,236.43,14.8034]
[1731958677523,0.12549,236.47,236.43,10.5739]
[1731958677840,0.12549,236.47,236.43,14.8034]
[1731958678252,0.09367462,236.46,236.43,10.5739]
[1731958678550,0.09367462,236.46,236.41,4.2298]
[1731958678551,0.09367462,236.44,236.41,4.2298]
[1731958679029,0.12549,236.45,236.41,4.2298]
[1731958679231,0.25098,236.47,236.41,4.2298]
[1731958679549,21.5872656,236.71,236.41,4.2298]
[1731958679550,4.2275,236.55,236.44,20.72182822]
[1731958679724,24.94902822,236.57,236.46,20.72182822]
[1731958679929,24.94872822,236.58,236.46,20.72182822]
[1731958680148,4.2264,236.61,236.47,20.0]
[1731958680431,20.72182822,236.6,236.47,20.0]
[1731958680759,20.72182822,236.58,236.47,20.0]
[1731958681051,20.72182822,236.58,236.48,14.8003]
[1731958681356,20.72182822,236.62,236.49,20.0]
[1731958681652,0.09367462,236.61,236.49,32.7925]
[1731958681836,20.72182822,236.55,236.49,20.0]
[1731958682031,20.72182822,236.57,236.49,20.0]
[1731958682252,0.09367462,236.56,236.49,20.0]
[1731958682844,20.72182822,236.59,236.49,20.0]
[1731958683078,20.72182822,236.59,236.5,14.7991]
[1731958683548,20.72182822,236.64,236.51,20.0]
[1731958683851,20.81550284,236.64,236.51,20.0]
[1731958684054,20.72182822,236.64,236.51,20.0]
[1731958684747,0.34465462,236.63,236.53,20.0]
[1731958685856,11.5256656,236.71,236.53,20.0]
[1731958685857,24.94702822,236.68,236.53,20.0]
[1731958686144,20.72182822,236.68,236.53,20.0]
[1731958686449,20.72182822,236.68,236.56,20.0]
[1731958686648,20.72182822,236.68,236.57,14.7946]
[1731958686847,27.28022057,236.7,236.57,14.7946]
[1731958687360,27.28022057,236.7,236.58,20.0]
[1731958688067,0.4638656,236.71,236.58,20.0]
[1731958688227,20.72182822,236.7,236.58,20.0]
[1731958688432,0.4638656,236.71,236.6,20.0]
[1731958688632,0.4638656,236.71,236.61,14.7922]
[1731958688931,20.72182822,236.68,236.55,12.3181]
[1731958689129,0.4638656,236.71,236.55,12.3181]
[1731958689130,20.72182822,236.6,236.56,14.7951]
[1731958690251,0.09367462,236.61,236.56,14.7951]
[1731958690654,0.12549,236.65,236.56,14.7951]
[1731958690858,0.09367462,236.64,236.56,14.7951]
[1731958691935,0.09367462,236.64,236.57,20.0]
[1731958692131,0.12549,236.65,236.57,20.0]
[1731958692330,20.72182822,236.7,236.57,20.0]
[1731958693042,0.4638656,236.71,236.57,20.0]
[1731958693359,0.09367462,236.69,236.57,20.0]
[1731958693531,0.21916462,236.69,236.57,20.0]
[1731958693933,0.21916462,236.67,236.59,20.0]
[1731958694139,0.21916462,236.67,236.6,20.72182822]
[1731958695441,20.72182822,236.68,236.6,20.72182822]
[1731958695642,0.5,236.9,236.75,20.72182822]
[1731958695963,33.01439673,236.94,236.75,20.72182822]
[1731958695964,0.4638656,236.94,236.89,20.0]
[1731958696154,0.4638656,236.94,236.91,20.72182822]
[1731958696764,0.4638656,236.94,236.93,20.72182822]
[1731958696946,0.4638656,236.94,236.91,20.72182822]
[1731958697462,0.4638656,236.94,236.89,20.72182822]
[1731958697637,0.4638656,236.94,236.88,10.5538]
[1731958698084,0.09367462,236.92,236.85,20.72182822]
[1731958698265,0.09367462,236.9,236.83,20.72182822]
[1731958698571,0.09367462,236.9,236.82,14.7789]
[1731958698572,0.09367462,236.88,236.82,14.779]
[1731958698744,0.09367462,236.88,236.83,20.72182822]
[1731958699068,20.72182822,236.93,236.83,20.72182822]
[1731958699237,0.4638656,236.94,236.87,20.72182822]
[1731958699551,20.81550284,236.93,236.85,20.72182822]
[1731958699944,20.81550284,236.93,236.86,4.2219]
[1731958700346,20.81550284,236.93,236.86,14.7766]
[1731958700653,0.25098,236.93,236.86,14.7766]
[1731958700858,0.4638656,236.94,236.86,14.7766]
[1731958701182,0.4638656,236.94,236.87,20.72182822]
[1731958701463,0.09367462,236.93,236.9,20.72182822]
[1731958701669,0.09367462,236.93,236.92,20.72182822]
[1731958702272,0.09367462,236.93,236.92,24.94262822]
[1731958702447,0.4638656,236.94,236.92,24.94262822]
[1731958703086,0.4638656,236.94,236.92,35.49462822]
[1731958704248,0.4638656,236.94,236.92,35.49452822]
[1731958704668,0.09367462,236.93,236.92,20.72182822]
[1731958705167,0.09367462,236.93,236.9,20.72182822]
[1731958705346,0.21916462,236.93,236.9,20.72182822]
[1731958706573,0.21916462,236.93,236.86,10.5543]
[1731958706574,0.12549,236.92,236.88,20.72182822]
[1731958707447,0.09367462,236.89,236.84,20.72182822]
[1731958707845,0.21916462,236.89,236.8,10.557]
[1731958708068,0.21916462,236.89,236.86,20.72182822]
[1731958708268,0.21916462,236.89,236.88,20.72182822]
[1731958708447,0.34465462,236.89,236.88,20.72182822]
[1731958708649,0.34465462,236.89,236.86,20.72182822]
[1731958708874,0.21916462,236.87,236.84,20.72182822]
[1731958709873,0.21916462,236.87,236.86,20.72182822]
[1731958710872,0.21916462,236.87,236.84,4.2221]
[1731958711088,0.21916462,236.87,236.84,24.94392822]
[1731958711548,0.21916462,236.87,236.86,20.72182822]
[1731958712359,0.09367462,236.87,236.86,20.72182822]
[1731958713112,0.09367462,236.91,236.86,20.72182822]
[1731958713274,0.09367462,236.91,236.88,20.72182822]
[1731958713653,0.09367462,236.91,236.86,20.72182822]
[1731958714267,0.4638656,236.94,236.88,20.72182822]
[1731958714472,0.25098,236.93,236.88,20.72182822]
[1731958714672,0.09367462,236.92,236.88,20.72182822]
[1731958714878,0.09367462,236.92,236.86,20.72182822]
[1731958716568,0.4638656,236.94,236.91,20.72182822]
[1731958717764,0.4638656,236.94,236.93,20.72182822]
[1731958717979,0.4638656,236.94,236.92,20.72182822]
[1731958718180,0.09367462,236.93,236.92,20.72182822]
[1731958718784,0.09367462,236.93,236.91,20.72182822]
[1731958719984,4.56525462,236.93,236.87,20.72182822]
[1731958720174,0.34465462,236.93,236.9,20.72182822]
[1731958720486,0.34465462,236.93,236.88,20.72182822]
[1731958720689,0.09367462,236.93,236.92,20.72182822]
[1731958720987,0.09367462,236.93,236.8,20.0]
[1731958721368,4.56525462,236.93,236.8,20.0]
[1731958721572,0.34465462,236.93,236.8,20.0]
[1731958721987,0.09367462,236.87,236.81,14.7796]
[1731958722287,0.34465462,236.87,236.81,35.50142822]
[1731958722491,0.09367462,236.83,236.79,4.223]
[1731958723188,20.81550284,236.86,236.79,4.223]
[1731958723489,20.72182822,236.86,236.79,24.94482822]
[1731958723682,20.72182822,236.86,236.79,35.50262822]
[1731958724072,20.72182822,236.9,236.83,20.72182822]
[1731958724270,20.72182822,236.92,236.83,20.72182822]
[1731958724477,20.72182822,236.9,236.83,20.72182822]
[1731958724673,0.09367462,236.89,236.83,20.72182822]
[1731958725084,0.09367462,236.86,236.79,35.50262822]
[1731958725586,0.34465462,236.86,236.79,35.50262822]
[1731958725789,0.34465462,236.86,236.79,14.7808]
[1731958726092,0.25098,236.88,236.8,20.72182822]
[1731958726466,0.21916462,236.87,236.8,20.72182822]
[1731958727863,0.21916462,236.87,236.81,14.7796]
[1731958728068,20.72182822,236.89,236.81,14.7796]
[1731958728272,0.09367462,236.87,236.81,14.7796]
[1731958728767,0.09367462,236.88,236.81,14.7796]
[1731958729188,0.09367462,236.88,236.84,20.72182822]
[1731958730388,0.09367462,236.88,236.84,24.94402822]
[1731958730593,0.09367462,236.88,236.78,20.72182822]
[1731958730594,0.21916462,236.86,236.78,20.72182822]
[1731958730888,0.09367462,236.82,236.78,20.72182822]
[1731958731274,20.72182822,236.87,236.78,20.72182822]
[1731958731469,0.25098,236.87,236.82,20.72182822]
[1731958731893,12.7904,236.89,236.82,20.72182822]
[1731958732094,0.25098,236.9,236.84,20.72182822]
[1731958732593,0.09367462,236.89,236.84,20.72182822]
[1731958732803,0.09367462,236.89,236.81,10.5568]
[1731958732804,20.81550284,236.89,236.82,20.72182822]
[1731958732971,0.09367462,236.87,236.81,10.5568]
[1731958733488,0.09367462,236.87,236.81,14.7795]
[1731958733691,0.25098,236.86,236.8,20.72182822]
[1731958733992,0.09367462,236.85,236.8,24.94472822]
[1731958734174,179.12182822,236.91,236.82,20.72182822]
[1731958734381,0.12549,236.91,236.83,12.83747624]
[1731958734707,0.4638656,236.94,236.91,44.276884]
[1731958735000,12.83747624,237.11,236.94,20.0]
[1731958735179,12.83747624,237.11,237.01,12.83747624]
[1731958735379,171.23747624,237.13,237.03,12.83747624]
[1731958735582,0.89438241,237.05,237.03,12.83747624]
[1731958736106,0.89438241,237.05,236.91,2.52973561]
[1731958736107,0.89438241,237.05,236.91,2.02973561]
[1731958736397,0.89438241,237.05,236.88,13.33747624]
[1731958736398,0.89438241,237.05,236.98,12.83747624]
[1731958736574,0.09367462,237.02,236.94,12.83747624]
[1731958736768,0.09367462,237.02,236.9,14.774]
[1731958736998,0.09367462,236.99,236.92,12.83747624]
[1731958737297,0.09367462,236.99,236.94,12.83747624]
[1731958737501,0.34465462,237.01,236.92,12.83747624]
[1731958737998,0.34465462,237.01,236.94,12.83747624]
[1731958738180,0.34465462,237.01,236.98,12.83747624]
[1731958738503,0.34465462,237.01,236.98,20.51292984]
[1731958738688,0.89438241,237.05,236.98,20.51292984]
[1731958738882,0.89438241,237.05,236.97,4.2199]
[1731958738883,0.09367462,237.04,236.97,4.2199]
[1731958739282,21.40731225,237.05,236.97,4.2199]
[1731958739478,0.89438241,237.05,236.98,20.51292984]
[1731958739693,0.89438241,237.05,237.0,20.51292984]
[1731958739998,0.09367462,237.04,236.98,20.51292984]
[1731958740195,0.21916462,237.02,236.96,20.51292984]
[1731958740497,0.09367462,236.96,236.92,20.51292984]
[1731958740797,0.12549,236.95,236.91,10.5522]
[1731958741099,0.09367462,236.94,236.91,10.5522]
[1731958741601,0.09367462,236.92,236.88,20.51292984]
[1731958741802,0.21916462,236.92,236.88,20.51292984]
[1731958742296,0.09367462,236.9,236.86,20.51292984]
[1731958742475,0.09367462,236.9,236.77,12.2261]
[1731958742476,0.09367462,236.88,236.84,20.51292984]
[1731958742675,0.21916462,236.86,236.82,20.51292984]
[1731958742913,0.09367462,236.84,236.8,31.07032984]
[1731958743079,0.21916462,236.84,236.8,31.07032984]
[1731958744701,0.09367462,236.82,236.76,20.51292984]
[1731958745199,0.09367462,236.82,236.78,20.51292984]
[1731958746502,0.09367462,236.8,236.78,20.51292984]
[1731958747205,20.51292984,236.87,236.79,20.51292984]
[1731958747385,158.4,236.88,236.85,20.51292984]
[1731958747709,4.221,236.91,236.85,20.51292984]
[1731958748490,0.09367462,236.9,236.85,20.51292984]
[1731958749097,0.34465462,236.9,236.85,20.51292984]
[1731958749687,24.12153862,236.9,236.83,20.51292984]
[1731958750594,0.34465462,236.88,236.83,20.51292984]
[1731958751204,0.34465462,236.88,236.85,20.51292984]
[1731958751393,12.4881,236.94,236.87,20.51292984]
[1731958751589,158.4,236.96,236.89,20.51292984]
[1731958751787,158.4,236.96,236.81,14.7796]
[1731958751788,158.4,236.96,236.93,20.51292984]
[1731958751994,24.73202984,237.02,236.93,20.51292984]
[1731958752196,158.4,237.02,236.95,20.51292984]
[1731958752606,0.09367462,237.01,236.93,20.51292984]
[1731958752784,24.73232984,237.0,236.93,20.51292984]
[1731958752983,0.5,236.99,236.91,20.51292984]
[1731958753289,0.09367462,236.97,236.91,20.51292984]
[1731958753604,0.09367462,236.95,236.89,20.51292984]
[1731958753904,0.09367462,236.95,236.91,20.51292984]
[1731958754087,0.25098,236.97,236.93,20.51292984]
[1731958754404,158.4,236.98,236.93,20.51292984]
[1731958754600,0.09367462,236.97,236.93,20.51292984]
[1731958754909,0.09367462,236.97,236.91,20.51292984]
[1731958755288,157.71347462,236.98,236.91,20.51292984]
[1731958755611,0.25098,236.97,236.91,20.51292984]
[1731958756085,0.25098,236.97,236.89,20.51292984]
[1731958756793,24.73302984,236.96,236.89,20.51292984]
[1731958756979,0.25098,236.95,236.89,20.51292984]
[1731958757687,0.09367462,236.94,236.89,20.51292984]
[1731958757893,0.34465462,236.92,236.87,31.06722984]
[1731958758811,0.34465462,236.92,236.87,20.51292984]
[1731958759493,0.34465462,236.92,236.89,20.51292984]
[1731958759717,0.25098,236.95,236.91,20.51292984]
[1731958760207,0.09367462,236.92,236.89,12.83120637]
[1731958760706,4.2201,236.96,236.89,12.83120637]
[1731958760913,0.25098,236.95,236.89,12.83120637]
[1731958761909,0.09367462,236.94,236.87,12.83120637]
[1731958762106,0.21916462,236.94,236.87,12.83120637]
[1731958762313,0.09367462,236.92,236.87,12.83120637]
[1731958762494,0.21916462,236.92,236.87,12.83120637]
[1731958762705,0.21916462,236.92,236.85,12.83120637]
[1731958762993,0.21916462,236.92,236.87,12.83120637]
[1731958763207,0.21916462,236.92,236.89,12.83120637]
[1731958763413,0.25098,236.98,236.91,12.83120637]
[1731958763599,12.83120637,236.99,236.91,12.83120637]
[1731958763803,0.09367462,236.98,236.91,12.83120637]
[1731958763989,0.09367462,236.98,236.91,17.05220637]
[1731958764314,17.05090637,236.99,236.91,17.05220637]
[1731958764606,0.09367462,236.98,236.91,17.05220637]
[1731958764812,0.34465462,236.96,236.89,23.38440637]
[1731958765313,0.34465462,236.94,236.87,12.83120637]
[1731958765646,0.34465462,236.94,236.86,4.2217]
[1731958765810,0.09367462,236.92,236.85,12.83120637]
[1731958766000,0.34465462,236.92,236.85,17.05320637]
[1731958766518,4.56545462,236.92,236.85,17.05320637]
[1731958766811,0.34465462,236.92,236.85,17.05320637]
[1731958766997,4.56555462,236.92,236.87,12.83120637]
[1731958767197,4.56555462,236.92,236.85,12.83120637]
[1731958768114,4.56555462,236.92,236.85,17.05310637]
[1731958770201,157.71387462,236.96,236.89,12.83120637]
[1731958770407,0.25098,236.95,236.89,12.83120637]
[1731958770718,0.09367462,236.94,236.89,12.83120637]
[1731958771094,153.49367462,236.96,236.91,12.83120637]
[1731958771296,11.0472,237.03,236.91,12.83120637]
[1731958771297,12.83120637,236.99,236.91,12.83120637]
[1731958771521,0.09367462,236.94,236.87,12.83120637]
[1731958772025,153.49367462,236.98,236.91,12.83120637]
[1731958772214,157.71337462,236.98,236.91,17.05210637]
[1731958772397,0.09367462,236.97,236.91,17.05210637]
[1731958772797,0.09367462,236.97,236.89,27.60570637]
[1731958772995,0.09367462,236.97,236.89,23.38450637]
[1731958773213,0.09367462,236.95,236.87,17.05280637]
[1731958773415,0.09367462,236.95,236.87,12.83120637]
[1731958773613,5.11288241,237.05,236.94,12.83120637]
[1731958773808,5.11288241,237.05,236.93,12.5978]
[1731958773809,0.89438241,237.05,237.0,12.83120637]
[1731958774113,0.89438241,237.05,237.02,12.83120637]
[1731958774319,0.89438241,237.05,237.02,17.05010637]
[1731958775321,0.89438241,237.05,237.02,27.59770637]
[1731958786631,0.89438241,237.05,237.0,12.83120637]
[1731958786941,0.89438241,237.05,236.99,12.83120637]
[1731958787107,0.89438241,237.05,237.0,12.83120637]
[1731958787313,0.89438241,237.05,237.02,12.83120637]
[1731958787513,0.89438241,237.05,237.01,12.83120637]
[1731958787910,0.89438241,237.05,237.0,12.83120637]
[1731958788711,0.89438241,237.05,236.99,14.7684]
[1731958788912,0.34465462,237.04,236.99,14.7684]
[1731958789727,0.34465462,237.04,236.88,34.43890637]
[1731958789728,13.17586099,237.04,236.96,17.05110637]
[1731958790036,0.34465462,236.99,236.91,12.83120637]
[1731958790713,0.34465462,236.99,236.93,12.83120637]
[1731958791154,0.34465462,236.99,236.95,12.83120637]
[1731958791317,0.34465462,236.99,236.93,12.83120637]
[1731958791518,12.83120637,237.02,236.95,12.83120637]
[1731958791710,12.83120637,237.02,236.88,33.93890637]
[1731958791711,0.12549,237.04,236.99,12.83120637]
[1731958791919,0.12549,237.04,236.97,12.83120637]
[1731958792219,0.21916462,237.04,236.97,12.83120637]
[1731958792416,0.09367462,237.03,236.99,12.83120637]
[1731958792826,0.09367462,237.03,236.96,14.7704]
[1731958793011,0.21916462,237.03,236.96,14.7704]
[1731958793723,13.05037099,237.03,236.96,14.7704]
[1731958794120,0.12549,237.04,236.96,14.7704]
[1731958794121,0.89438241,237.05,237.01,12.83120637]
[1731958794323,0.89438241,237.05,237.03,12.83120637]
[1731958795032,0.89438241,237.05,237.01,12.83120637]
[1731958795456,0.89438241,237.05,237.03,12.83120637]
[1731958796021,0.89438241,237.05,237.04,20.0]
[1731958796211,0.89438241,237.05,237.03,12.83120637]
[1731958796212,0.89438241,237.05,237.03,20.0]
[1731958796413,0.4638656,237.18,237.05,43.776884]
[1731958796615,0.4638656,237.18,237.15,12.83120637]
[1731958797637,0.4638656,237.18,237.16,4.2165]
[1731958798336,0.4638656,237.18,237.17,12.83120637]
[1731958800622,0.4638656,237.18,237.16,14.7579]
[1731958801432,0.4638656,237.18,237.16,10.5414]
[1731958801632,0.4638656,237.18,237.14,17.04800637]
[1731958802039,0.4638656,237.18,237.16,12.83120637]
[1731958802334,0.4638656,237.18,237.17,4.2163]
[1731958804140,0.34465462,237.17,237.04,14.7653]
[1731958804314,0.4638656,237.18,237.13,12.83120637]
[1731958804730,0.09367462,237.17,237.13,12.83120637]
[1731958804931,0.34465462,237.15,237.08,12.83120637]
[1731958805314,0.34465462,237.15,237.04,14.7653]
[1731958805315,12.83120637,237.13,237.05,12.83120637]
[1731958805611,0.4638656,237.18,237.11,12.83120637]
[1731958806038,0.4638656,237.18,237.13,12.83120637]
[1731958806416,0.4638656,237.18,237.13,20.0]
[1731958806613,0.4638656,237.18,237.14,12.83120637]
[1731958806814,0.4638656,237.18,237.12,14.7603]
[1731958807244,12.83120637,237.18,237.12,10.5431]
[1731958807415,12.83120637,237.16,237.12,10.5431]
[1731958807617,12.83120637,237.14,237.09,4.2176]
[1731958808038,12.83120637,237.14,237.08,10.5449]
[1731958808427,12.83120637,237.16,237.08,10.5449]
[1731958808831,0.34465462,237.17,237.08,10.5449]
[1731958809035,13.17586099,237.17,237.08,10.5449]
[1731958809420,12.83120637,237.15,237.08,10.5449]
[1731958809848,12.83120637,237.13,237.08,10.5449]
[1731958810344,12.83120637,237.13,237.08,14.7628]
[1731958811350,12.83120637,237.13,237.08,10.5449]
[1731958811643,12.83120637,237.09,237.02,14.7664]
[1731958811844,12.83120637,237.09,237.02,10.5475]
[1731958812043,12.83120637,237.07,237.02,10.5475]
[1731958812738,0.34465462,237.02,236.9,14.774]
[1731958812937,12.83120637,237.01,236.92,12.83120637]
[1731958813553,0.34465462,237.02,236.92,12.83120637]
[1731958813554,12.83120637,236.99,236.93,4.2206]
[1731958814045,12.83120637,236.99,236.92,12.83120637]
[1731958814256,0.21916462,236.96,236.9,10.5529]
[1731958814437,0.21916462,236.96,236.87,12.83120637]
[1731958814635,0.21916462,236.96,236.82,12.9914]
[1731958814636,12.83120637,236.93,236.85,23.38620637]
[1731958815631,12.83120637,236.91,236.85,10.555]
[1731958815831,12.83120637,236.91,236.74,0.5]
[1731958815832,12.83120637,236.89,236.81,12.83120637]
[1731958816033,0.21916462,236.88,236.81,12.83120637]
[1731958816236,12.83120637,236.87,236.8,10.5574]
[1731958816764,12.83120637,236.85,236.8,10.5574]
[1731958817051,12.83120637,236.85,236.78,4.2233]
[1731958817744,0.09367462,236.8,236.74,10.5597]
[1731958817950,12.83120637,236.77,236.74,10.5597]
[1731958818345,158.4,236.85,236.69,12.83120637]
[1731958818346,12.83120637,236.75,236.7,4.2246]
[1731958818537,12.83120637,236.77,236.69,23.39340637]
[1731958819358,12.83120637,236.79,236.71,12.83120637]
[1731958819543,158.4,236.84,236.78,12.83120637]
[1731958819744,13.08218637,236.85,236.78,12.83120637]
[1731958819927,12.83120637,236.85,236.78,12.83120637]
[1731958820130,12.83120637,236.85,236.76,17.05470637]
[1731958820345,12.83120637,236.83,236.76,17.05470637]
[1731958820838,0.09367462,236.84,236.76,17.05470637]
[1731958821032,0.5,236.89,236.8,12.83120637]
[1731958821033,12.83120637,236.89,236.8,12.83120637]
[1731958821250,12.83120637,236.89,236.82,12.83120637]
[1731958821930,12.83120637,236.91,236.84,12.83120637]
[1731958822144,12.83120637,236.95,236.86,12.83120637]
[1731958822445,0.09367462,236.94,236.87,20.53167362]
[1731958822643,20.53167362,236.95,236.87,20.53167362]
[1731958822844,20.53167362,236.93,236.85,20.53167362]
[1731958823448,0.09367462,236.92,236.85,20.53167362]
[1731958823649,20.53167362,236.95,236.87,20.53167362]
[1731958823841,20.53167362,236.97,236.89,20.53167362]
[1731958824049,20.53167362,236.97,236.84,14.7777]
[1731958824050,20.53167362,236.97,236.87,20.53167362]
[1731958824257,20.53167362,236.95,236.87,20.53167362]
[1731958824456,20.53167362,236.99,236.91,20.53167362]
[1731958824649,20.53167362,237.01,236.93,20.53167362]
[1731958824958,4.2194,237.0,236.93,20.53167362]
[1731958826058,0.12549,236.99,236.91,20.53167362]
[1731958826557,0.09367462,236.96,236.87,20.53167362]
[1731958826937,0.09367462,236.96,236.89,20.53167362]
[1731958827337,0.09367462,236.94,236.89,20.53167362]
[1731958827537,0.09367462,236.94,236.85,20.53167362]
[1731958827538,0.09367462,236.9,236.85,20.53167362]
[1731958827737,0.21916462,236.9,236.83,20.53167362]
[1731958828058,0.09367462,236.88,236.81,20.53167362]
[1731958828248,0.21916462,236.88,236.81,20.53167362]
[1731958828654,0.21916462,236.88,236.78,10.5582]
[1731958828655,0.21916462,236.84,236.77,20.53167362]
[1731958829364,20.53167362,236.83,236.75,20.53167362]
[1731958829668,0.34465462,236.82,236.75,20.53167362]
[1731958829866,0.34465462,236.82,236.73,4.2241]
[1731958829867,0.21916462,236.8,236.73,20.53167362]
[1731958830161,24.75417362,236.83,236.75,20.53167362]
[1731958830743,20.53167362,236.81,236.73,20.53167362]
[1731958830946,20.53167362,236.81,236.73,24.75577362]
[1731958831645,24.75447362,236.81,236.73,24.75577362]
[1731958831853,0.34465462,236.82,236.75,20.53167362]
[1731958832046,4.56725462,236.82,236.75,20.53167362]
[1731958834355,4.56725462,236.82,236.77,20.53167362]
[1731958834561,4.2219,236.86,236.77,20.53167362]
[1731958835072,4.2219,236.86,236.72,10.5606]
[1731958835073,4.2219,236.86,236.81,20.53167362]
[1731958835664,37.3085,236.93,236.85,20.53167362]
[1731958835872,20.53167362,236.95,236.88,20.53167362]
[1731958836168,4.2202,236.96,236.88,20.53167362]
[1731958836669,20.53167362,236.95,236.88,20.53167362]
[1731958836848,20.53167362,236.93,236.84,20.53167362]
[1731958837248,0.09367462,236.9,236.82,31.08817362]
[1731958837448,0.09367462,236.9,236.82,20.53167362]
[1731958838068,23.87055862,236.9,236.82,20.53167362]
[1731958838368,0.09367462,236.86,236.8,20.53167362]
[1731958838870,0.09367462,236.86,236.78,24.75487362]
[1731958839168,4.31567462,236.86,236.78,24.75487362]
[1731958840252,0.09367462,236.84,236.78,20.53167362]
[1731958840453,0.09367462,236.84,236.76,20.53167362]
[1731958840751,0.21916462,236.79,236.72,31.09227362]
[1731958840962,0.21916462,236.77,236.7,20.53167362]
[1731958842167,0.21916462,236.77,236.7,24.75637362]
[1731958842351,4.44266462,236.77,236.7,24.75637362]
[1731958842748,4.44266462,236.77,236.7,20.53167362]
[1731958843073,24.97433824,236.77,236.69,20.53167362]
[1731958843669,0.09367462,236.75,236.69,20.53167362]
[1731958843968,20.75083824,236.75,236.68,20.53167362]
[1731958844872,0.21916462,236.75,236.69,20.53167362]
[1731958845370,0.21916462,236.75,236.7,20.53167362]
[1731958845776,0.21916462,236.75,236.69,20.53167362]
[1731958845956,20.75083824,236.75,236.68,20.53167362]
[1731958846354,0.09367462,236.73,236.68,20.53167362]
[1731958846686,20.75083824,236.71,236.63,20.53167362]
[1731958846874,0.09367462,236.65,236.59,20.99553922]
[1731958847180,0.09367462,236.65,236.6,20.53167362]
[1731958847880,4.31927462,236.65,236.6,20.53167362]
[1731958849084,0.09367462,236.65,236.6,20.53167362]
[1731958849658,0.09367462,236.63,236.59,0.4638656]
[1731958850166,0.09367462,236.61,236.59,0.4638656]
[1731958850377,20.53167362,236.61,236.59,0.4638656]
[1731958850570,0.21916462,236.6,236.59,0.4638656]
[1731958850963,20.87632824,236.6,236.59,0.4638656]
[1731958851160,44.65321224,236.6,236.59,0.4638656]
[1731958851961,48.87971224,236.6,236.59,0.4638656]
[1731958857370,24.75817362,236.6,236.59,0.4638656]
[1731958857875,95.35184824,236.6,236.59,0.4638656]
[1731958858669,95.35184824,236.6,236.42,20.53167362]
[1731958858670,94.99604862,236.57,236.42,20.53167362]
[1731958858864,94.99604862,236.57,236.36,12.5123656]
[1731958858865,0.09367462,236.49,236.37,20.53167362]
[1731958859085,0.09367462,236.42,236.36,20.99553922]
[1731958859799,23.87055862,236.42,236.36,20.99553922]
[1731958860006,28.10035862,236.42,236.36,20.99553922]
[1731958860703,0.09367462,236.4,236.36,20.99553922]
[1731958861080,20.53167362,236.44,236.37,20.53167362]
[1731958861283,24.76027362,236.48,236.41,20.53167362]
[1731958861495,0.09367462,236.46,236.36,0.4638656]
[1731958861705,70.5,236.45,236.36,0.4638656]